[Event "24th Hoogeschool Zeeland 2022"]
[Site "Vlissingen"]
[Date "2022.08.12"]
[Round "8.14"]
[White "Van Wijk, Peter"]
[Black "Stillger, Bernhard"]
[Result "0-1"]
[ECO "B12"]
[WhiteElo "2016"]
[BlackElo "2245"]
[Annotator "TA"]
[PlyCount "112"]
[EventDate "2022.08.05"]
[EventType "swiss"]
[EventCountry "NED"]
[SourceTitle "playchess.com"]
[Source "ChessBase"]
[SourceQuality "1"]
[TimeControl "40/5400+30:1800+30"]

{[%evp 9,112,8,27,-29,0,-16,0,0,-19,-31,-27,-19,-26,-20,-23,-41,-37,-36,0,-37,-13,-9,-27,-10,-12,-30,-25,-41,-45,-64,-61,-65,-53,-61,-53,-84,-52,-65,-68,-71,-76,-65,-36,-36,-32,-32,0,-30,0,-47,-39,-41,-34,-60,-55,-55,-55,-63,-62,-63,-63,-49,-10,-10,-10,-21,-21,-59,-59,-91,-91,-109,-110,-105,0,0,0,-106,-106,-639,-1362,-3503,-3078,-2590,-1650,-1529,-2700,-4484,-3642,-4463,-4306,-3789,-3700,-2590,-165,-2993,-2993,-2700,-2689,-29942,-12740,-10478,-1993,-1821,-1391]} 1. e4 {[%emt 0:04:31]} c6 {[%emt 0:00:06]} 2. d4 {[%emt 0:00:40]} d5 {[%emt 0:00:04]} 3. e5 {[%emt 0:00:09]} Bf5 {[%emt 0:00:16]} 4. h4 {[%emt 0:00:12]} Qc7 {[%emt 0:00:28]} 5. g4 {[%emt 0:03:05]} Bd7 {[%emt 0:01:24]} 6. c3 {[%emt 0:25:49] [#] B12: Caro-Kann: Advance Variation.} (6. Nc3 $142) 6... e6 $146 {[%emt 0:05:03]} ({Predecessor:} 6... c5 7. Be3 Nc6 8. Na3 a6 9. Nc2 e6 10. h5 cxd4 11. cxd4 Rc8 12. a3 Nxe5 13. dxe5 Qxc2 14. Qxc2 Rxc2 {0-1 (49) Perez Gormaz,M (2404)-Jobava,B (2588) Chess.com INT 2022}) 7. Bd3 {[%emt 0:12:06]} c5 {[%emt 0:03:51]} 8. Nd2 {[%emt 0:07:42] The position is equal.} Nc6 {[%emt 0:03:21]} 9. Ndf3 {[%emt 0:01:00]} cxd4 {[%emt 0:02:58]} 10. cxd4 {[%emt 0:00:02]} Nb4 {[%emt 0:00:23] Strongly threatening ...Qa5.} 11. Bb1 {[%emt 0:06:33]} Rc8 {[%emt 0:03:57]} 12. Bd2 {[%emt 0:01:46]} Bb5 {[%emt 0:10:32][%cal Oc7c2]} 13. Bc3 {[%emt 0:11:14]} Qc4 {[%emt 0:09:20] ...Qf1+ is the strong threat.} 14. Ne2 {[%emt 0:03:14]} Nd3+ {[%emt 0:05:55]} (14... h5 {feels hotter.} 15. gxh5 Nd3+ 16. Qxd3 Qxd3 17. Bxd3 Bxd3 18. Kd2 Bxe2 19. Kxe2 Rxh5 20. Rhc1 Kd7) 15. Bxd3 {[%emt 0:00:10]} Qxd3 {[%emt 0:00:06]} 16. Qxd3 {[%emt 0:00:05]} Bxd3 {[%emt 0:00:03]} 17. Ng3 {[%emt 0:06:43]} Nh6 {[%emt 0:03:21]} 18. g5 {[%emt 0:00:30]} Nf5 {[%emt 0:01:24]} 19. Nxf5 {[%emt 0:07:48]} Bxf5 {[%emt 0:01:42]} 20. Ke2 {[%emt 0:00:01]} Kd7 {[%emt 0:09:30]} 21. Rac1 {[%emt 0:00:07]} Be7 {[%emt 0:01:21]} 22. Bd2 {[%emt 0:00:17]} Bc2 {[%emt 0:10:18]} 23. Ne1 {[%emt 0:00:59][%cal Bf3e1,Be1g2,Bg2e3][%mdl 32]} Be4 {[%emt 0:02:02] Black is more active.} 24. f3 {[%emt 0:00:24]} Rxc1 {[%emt 0:03:16]} 25. Bxc1 {[%emt 0:00:02]} Bf5 {[%emt 0:00:32]} 26. Ng2 {[%emt 0:00:45]} Bb1 {[%emt 0:10:07]} 27. a3 {[%emt 0:00:03]} Rc8 {[%emt 0:02:49]} 28. Bd2 {[%emt 0:00:24]} Ba2 {[%emt 0:00:50] Hoping for ...Rc2.} (28... Bg6 $5 {[%cal Rc8c2]}) 29. Rc1 {[%emt 0:00:29] Inhibits Rc2.} (29. Ne3 $11) 29... Rxc1 $15 {[%emt 0:00:41]} 30. Bxc1 {[%emt 0:00:03][%mdl 4096] Endgame KBB-KBN} Kc6 {[%emt 0:02:12]} 31. Ne3 {[%emt 0:01:55]} Bb1 {[%emt 0:02:51][%cal Ba2b1,Bb1g6,Bg6h5][%mdl 32]} 32. Kd2 {[%emt 0:00:31]} Bg6 {[%emt 0:00:20]} 33. Nf1 {[%emt 0:01:15]} Bh5 {[%emt 0:01:35]} 34. f4 {[%emt 0:00:01]} b5 {[%emt 0:00:47]} 35. b4 {[%emt 0:00:15]} f6 {[%emt 0:01:25]} 36. Kc3 {[%emt 0:00:10]} Kd7 {[%emt 0:00:24]} 37. Ng3 {[%emt 0:00:23]} Bg4 {[%emt 0:00:07]} 38. Bd2 {[%emt 0:00:29]} Ke8 {[%emt 0:00:55]} 39. Kd3 {[%emt 0:01:14]} Kf7 {[%emt 0:00:12]} 40. Ke3 {[%emt 0:00:07]} Kg6 {[%emt 0:00:34][%cal Rf6g5]} 41. Kf2 {[%emt 0:30:11]} h6 {[%emt 0:32:45]} ({Black should try} 41... fxg5 $17 42. hxg5 h6 43. gxh6 gxh6) 42. exf6 $11 {[%emt 0:00:00]} gxf6 {[%emt 0:00:00][%cal Rh6g5,Bg7f6,Bf6f5][%mdl 32]} 43. gxh6 {[%emt 0:00:00] [#]} (43. f5+ $1 $11 {remains equal.} exf5 44. gxh6) 43... f5 $1 $17 {[%emt 0:00:00]} ({Reject} 43... Kxh6 $6 44. f5+ Kh7 45. fxe6 $11) 44. Ne2 $2 {[%emt 0:00:00][%mdl 8192] Now White is beyond hope.} (44. Nh1 $17) 44... Bxe2 $19 {[%emt 0:00:00]} 45. Kxe2 {[%emt 0:00:00]} Kxh6 {[%emt 0:00:00] KB-KB} 46. Be1 {[%emt 0:02:04]} Kh5 {[%emt 0:00:00]} 47. Kf3 {[%emt 0:00:02]} Bxh4 {[%emt 0:00:00]} (47... Bf6 $142 48. Bc3 Kxh4 49. Be1+ Kh3) 48. Bc3 {[%emt 0:00:18]} a6 {[%emt 0:00:00]} 49. Bd2 {[%emt 0:00:50]} Bf6 {[%emt 0:00:00]} 50. Be3 {[%emt 0:06:05]} Kh4 {[%emt 0:00:00] And now ...Kh3 would win.} 51. Bg1 {[%emt 0:02:16]} Kh3 {[%emt 0:00:00]} 52. Bf2 $2 {[%emt 0:00:07]} (52. Be3) 52... Bh4 {[%emt 0:00:00] ( -> ...Bxf2)} 53. Bg1 {[%emt 0:00:41]} Be1 {[%emt 0:00:00]} 54. Ke2 {[%emt 0:00:01] [#]} Kg2 $1 {[%emt 0:00:00]} 55. Be3 {[%emt 0:00:02]} Bc3 {[%emt 0:00:00] aiming for ...Kg3.} 56. Kd3 {[%emt 0:00:09] [#]} Kf3 $1 {[%emt 0:00:00] Weighted Error Value: White=0.69/Black=0.06 (flawless)} 0-1

[Event "24th Hoogeschool Zeeland 2022"]
[Site "Vlissingen"]
[Date "2022.08.12"]
[Round "8.15"]
[White "Saketh, Pedagandham"]
[Black "Nieuwelink, Kees"]
[Result "1-0"]
[ECO "C47"]
[WhiteElo "1928"]
[BlackElo "2200"]
[Annotator "TA"]
[PlyCount "59"]
[EventDate "2022.08.05"]
[EventType "swiss"]
[EventCountry "NED"]
[SourceTitle "playchess.com"]
[Source "ChessBase"]
[SourceQuality "1"]
[TimeControl "40/5400+30:1800+30"]

{[%evp 11,59,20,35,29,39,28,33,34,35,43,41,41,41,45,34,34,43,35,30,27,34,38,77,71,90,90,145,143,173,175,170,172,179,172,248,247,234,220,377,360,358,360,382,397,400,383,781,768,1315,1128]} 1. e4 {[%emt 0:12:41]} e5 {[%emt 0:00:08]} 2. Nf3 {[%emt 0:00:07]} Nc6 {[%emt 0:00:05]} 3. d4 {[%emt 0:00:25]} exd4 {[%emt 0:00:12]} 4. Nxd4 {[%emt 0:00:54]} Nf6 {[%emt 0:00:15]} 5. Nc3 {[%emt 0:00:26]} Bc5 {[%emt 0:00:51]} 6. Be3 {[%emt 0:02:06]} Bb6 {[%emt 0:00:09]} 7. Qd2 $1 {[%emt 0:00:55][%mdl 4] is more profitable than 7.Nxc6 at the moment. C47: Scotch Four Knights and Four Knights with 4 g3.} O-O {[%emt 0:01:01]} 8. O-O-O {[%emt 0:01:41]} Re8 {[%emt 0:00:21]} 9. f3 {[%emt 0:00:54] White is slightly better.} d5 {[%emt 0:05:02]} 10. exd5 {[%emt 0:01:13]} Nxd5 {[%emt 0:00:49]} 11. Bg5 {[%emt 0:02:40]} Nde7 {[%emt 0:08:20][%cal Rd8d4]} 12. Nxc6 {[%emt 0:00:29]} Qxd2+ {[%emt 0:00:08]} 13. Bxd2 {[%emt 0:00:10]} Nxc6 {[%emt 0:00:06]} 14. Nd5 {[%emt 0:00:09]} Be6 {[%emt 0:00:44]} 15. Nxb6 {[%emt 0:00:09]} axb6 {[%emt 0:00:07]} 16. a3 {[%emt 0:00:05] [#]} Na5 $146 {[%emt 0:05:20]} ({Predecessor:} 16... Ne7 17. Bd3 c6 18. Rhe1 b5 19. Re2 Nd5 20. Rde1 Red8 21. h3 b4 22. Bxb4 Nf4 {1-0 (41) Van Foreest,J (2461)-Ernst,S (2554) Dieren 2014}) 17. Bf4 {[%emt 0:01:53]} Re7 {[%emt 0:02:38]} 18. Bd3 {[%emt 0:01:48]} f6 {[%emt 0:05:30]} ({Black should play} 18... h6) 19. Rhe1 $16 {[%emt 0:02:36]} Rae8 {[%emt 0:00:36] [#]} 20. b4 $1 {[%emt 0:02:22]} Nc6 {[%emt 0:00:41] [#]} 21. Rxe6 $1 {[%emt 0:01:06][%mdl 512]} Rxe6 {[%emt 0:00:05]} 22. Bc4 {[%emt 0:00:05]} Ne5 {[%emt 0:00:03]} (22... b5 $142 23. Bxe6+ Rxe6) 23. Bxe5 $18 {[%emt 0:00:20]} fxe5 {[%emt 0:00:06][%mdl 4096] Endgame KRR-KRB} 24. Rd7 {[%emt 0:00:30]} Kf8 $2 {[%emt 0:00:24]} (24... b5 {was called for.} 25. Bxe6+ Rxe6 26. Rxc7 b6) 25. Bxe6 {[%emt 0:00:07]} Rxe6 {[%emt 0:00:04]} 26. Rxc7 {[%emt 0:00:05]} e4 {[%emt 0:00:09]} 27. fxe4 {[%emt 0:00:10]} Rxe4 {[%emt 0:00:03]} 28. Rxb7 {[%emt 0:03:43]} Re2 $2 {[%emt 0:01:25]} (28... Re6 29. Kb2 Rg6) 29. Rxb6 {[%emt 0:01:14]} Rxg2 {[%emt 0:00:46]} 30. a4 {[%emt 0:00:08] Weighted Error Value: White=0.01 (flawless) /Black=0.32} 1-0

[Event "24th Hoogeschool Zeeland 2022"]
[Site "Vlissingen"]
[Date "2022.08.12"]
[Round "8.16"]
[White "Van der Zalm, Marnix"]
[Black "Grochal, Joey"]
[Result "0-1"]
[ECO "D47"]
[WhiteElo "2088"]
[BlackElo "2290"]
[Annotator "TA"]
[PlyCount "50"]
[EventDate "2022.08.05"]
[EventType "swiss"]
[EventCountry "NED"]
[SourceTitle "playchess.com"]
[Source "ChessBase"]
[SourceQuality "1"]
[TimeControl "40/5400+30:1800+30"]

{[%evp 21,50,-39,-38,-58,-30,-63,-64,-69,-24,-43,-22,-188,-185,-191,-202,-204,-160,-533,-514,-728,-741,-736,-727,-835,-827,-890,-891,-941,-908,-955,-931]} 1. d4 {[%emt 0:00:02]} Nf6 {[%emt 0:00:49]} 2. Nf3 {[%emt 0:00:35]} d5 {[%emt 0:01:06]} 3. c4 {[%emt 0:01:26]} c6 {[%emt 0:01:03]} 4. Nc3 {[%emt 0:00:34]} e6 {[%emt 0:03:08]} 5. e3 {[%emt 0:02:38]} Nbd7 {[%emt 0:00:23]} 6. Bd3 {[%emt 0:02:16]} dxc4 {[%emt 0:00:16]} 7. Bxc4 {[%emt 0:00:07]} b5 {[%emt 0:00:05]} 8. Bb3 {[%emt 0:00:30]} Bb7 {[%emt 0:04:24]} 9. O-O {[%emt 0:01:05]} a6 {[%emt 0:03:10]} 10. a4 {[%emt 0:02:32]} b4 {[%emt 0:04:03]} 11. Ne2 {[%emt 0:03:20]} c5 {[%emt 0:02:47]} 12. Ng3 {[%emt 0:02:03] [#] D47: Semi-Slav: Meran System.} h5 $146 {[%emt 0:09:03] aiming for ...h4.} ({Predecessor:} 12... Rc8 13. Qe2 Qa5 14. Rd1 Be7 15. e4 cxd4 16. Nxd4 Nc5 17. e5 Nfd7 18. Bc2 b3 19. Nxb3 Nxb3 20. Bxb3 Nxe5 {1-0 (34) Visakh,N (2471)-Sanikidze,T (2512) Konya 2018}) 13. d5 {[%emt 0:08:04]} Bxd5 {[%emt 0:04:03]} 14. Bxd5 {[%emt 0:07:37] Black is slightly better.} exd5 {[%emt 0:06:04][%cal Be6d5,Bd5e4,Be4f3][%mdl 32]} 15. e4 {[%emt 0:00:48]} dxe4 {[%emt 0:00:59]} 16. Nf5 $2 {[%emt 0:14:01] [#] Now White is beyond hope.} g6 $19 {[%emt 0:02:59]} 17. Nd6+ {[%emt 0:01:46]} Bxd6 {[%emt 0:00:42]} 18. Qxd6 {[%emt 0:00:07][%cal Oc1f4]} Qe7 {[%emt 0:05:07]} 19. Qc7 {[%emt 0:16:49]} (19. Qxe7+ $17 Kxe7 20. Re1) 19... exf3 {[%emt 0:02:59] Black is clearly winning.} 20. Bh6 {[%emt 0:02:07]} Ne5 {[%emt 0:01:07]} 21. Qxe7+ {[%emt 0:18:30]} Kxe7 {[%emt 0:00:01][%cal Be8e7,Be7e6,Be6f5][%mdl 32]} 22. Bg5 {[%emt 0:00:36]} Ke6 {[%emt 0:00:36]} 23. Rfe1 {[%emt 0:00:48]} Kf5 {[%emt 0:01:07]} 24. h4 {[%emt 0:00:56]} Rhe8 {[%emt 0:00:56]} 25. Rad1 {[%emt 0:01:58]} Rad8 {[%emt 0:00:47] Weighted Error Value: White=0.85/Black=0.09 (flawless)} 0-1

[Event "24th Hoogeschool Zeeland 2022"]
[Site "Vlissingen"]
[Date "2022.08.12"]
[Round "8.17"]
[White "Ollenberger, Roland"]
[Black "Marzano, Carlo"]
[Result "1-0"]
[ECO "A00"]
[WhiteElo "2264"]
[BlackElo "2079"]
[Annotator "TA"]
[PlyCount "115"]
[EventDate "2022.08.05"]
[EventType "swiss"]
[EventCountry "NED"]
[SourceTitle "playchess.com"]
[Source "ChessBase"]
[SourceQuality "1"]
[TimeControl "40/5400+30:1800+30"]

{[%evp 10,115,-27,-36,-27,-52,-48,-39,-34,-34,-34,-36,-24,-58,-43,-53,-55,-56,-30,-42,0,-8,-11,-45,-22,-63,-8,-63,-13,-18,-18,-25,-22,-23,-30,-76,-85,-100,-20,-27,-29,-29,-25,-25,-22,-27,-29,-20,-22,-30,-23,-15,-14,-10,-4,-11,-11,-60,-30,-69,-32,-39,-12,-105,-135,-90,0,0,0,0,8,-8,213,174,132,76,76,76,76,76,76,76,84,76,5493,2508,29973,29975,29975,29975,29975,29976,29978,29979,29979,29980,29980,29981,29981,29982,29982,29983,29983,29984,29984,29985,29985,29986]} 1. e4 {[%emt 0:00:03]} d5 {[%emt 0:00:05]} 2. Nc3 {[%emt 0:00:51]} d4 {[%emt 0:00:24]} 3. Nce2 {[%emt 0:00:04]} e5 {[%emt 0:00:10]} 4. Nf3 {[%emt 0:00:05]} f6 {[%emt 0:00:07]} 5. Ng3 {[%emt 0:00:11]} Be6 {[%emt 0:00:08]} 6. Bb5+ {[%emt 0:00:23]} c6 {[%emt 0:00:08] A00: Irregular Openings.} 7. Ba4 {[%emt 0:00:13]} Na6 {[%emt 0:00:13][%cal Bb8a6,Ba6b4,Bb4d3,Bd3c1][%mdl 32]} 8. Bb3 {[%emt 0:02:00]} Bxb3 {[%emt 0:00:10] Black is slightly better.} 9. axb3 {[%emt 0:00:05]} d3 {[%emt 0:00:07] And now ...Nb4 would win.} 10. O-O {[%emt 0:10:43]} Nb4 {[%emt 0:00:21]} 11. Ne1 {[%emt 0:14:46]} dxc2 {[%emt 0:00:48]} 12. Nxc2 {[%emt 0:00:05]} Nd3 $1 {[%emt 0:00:15]} 13. Ne1 {[%emt 0:07:38]} Nxc1 {[%emt 0:00:09]} 14. Qxc1 {[%emt 0:00:14] [#]} Nh6 $146 {[%emt 0:00:36][%cal Bg8h6,Bh6f7,Bf7e5][%mdl 32]} ({Predecessor:} 14... Qb6 15. Qc4 O-O-O 16. Nc2 Nh6 17. d4 exd4 18. Rfd1 Kb8 19. Nxd4 Bc5 20. Nge2 Ng4 21. Rac1 Bxd4 22. Nxd4 {1-0 (54) Eggleston,D-Vujatovic,R (2265) Edinburgh 2003}) 15. Nf3 {[%emt 0:00:18]} Qb6 {[%emt 0:14:52]} 16. Qc4 {[%emt 0:03:56]} (16. d4 $5) 16... O-O-O $1 {[%emt 0:01:03]} 17. Ne2 {[%emt 0:01:43]} Kb8 {[%emt 0:15:52]} (17... Bd6 $15) 18. h3 {[%emt 0:12:59]} (18. d4 $11) 18... Qc7 {[%emt 0:08:17]} (18... g5 $15) 19. Rfc1 {[%emt 0:05:30]} Nf7 {[%emt 0:00:40]} 20. d4 {[%emt 0:01:22]} exd4 {[%emt 0:15:18]} 21. Nfxd4 {[%emt 0:01:21][%cal Oa1a7]} Ne5 {[%emt 0:02:26]} 22. Qc3 {[%emt 0:07:55]} (22. Qc2 $1 $11 {was preferrable.} Qb6 23. Ne6) 22... Qb6 $17 {[%emt 0:00:58]} 23. Ra4 {[%emt 0:01:07] Against Bb4} c5 {[%emt 0:15:27]} (23... g5 $1 $17) 24. Nf3 $1 $11 {[%emt 0:06:24]} Rd3 {[%emt 0:00:23]} 25. Nxe5 {[%emt 0:01:17]} Rxc3 {[%emt 0:00:03]} 26. Nd7+ {[%emt 0:00:12]} Kc7 {[%emt 0:00:09] White must now prevent ...Rxc1+.} 27. Nxb6 {[%emt 0:00:32]} Rxc1+ {[%emt 0:00:05]} 28. Nxc1 {[%emt 0:00:05] Nd5+ is the strong threat.} Kxb6 {[%emt 0:00:07][%mdl 4096] Endgame KRB-KRN} 29. Ne2 {[%emt 0:01:26]} Bd6 {[%emt 0:00:49]} 30. f4 {[%emt 0:01:00] Prevents Be5.} a6 {[%emt 0:01:58]} 31. Kf2 {[%emt 0:00:18]} Kc6 {[%emt 0:01:48]} 32. Ke3 {[%emt 0:07:16]} Rd8 {[%emt 0:01:35]} 33. Ra1 {[%emt 0:00:38]} (33. h4 $11 {should be considered.}) 33... Bc7 {[%emt 0:03:23]} (33... Bb8 $5 {[%cal Rb8a7]}) 34. h4 {[%emt 0:04:51]} h5 {[%emt 0:06:31]} (34... Bb6 $5 {[%cal Rc5c4]} 35. Nc3 c4+ 36. Ke2 cxb3 $15) 35. Nc3 {[%emt 0:01:28]} Rd7 {[%emt 0:01:59]} 36. Rd1 {[%emt 0:01:32]} (36. Rc1 $11 {keeps the balance.}) 36... Rxd1 $17 {[%emt 0:00:36]} 37. Nxd1 {[%emt 0:00:02] [#] KB-KN} b5 {[%emt 0:03:24]} ({Black should try} 37... c4 $1 $17 {[%cal Rc4b3]} 38. bxc4 Kc5) 38. Kf3 $11 {[%emt 0:01:38]} g6 {[%emt 0:03:00]} 39. g4 {[%emt 0:01:04]} Kd7 {[%emt 0:01:27]} 40. Ne3 {[%emt 0:05:24]} Ba5 $2 {[%emt 0:02:44] [#]} (40... hxg4+ $11 {and Black is okay.} 41. Kxg4 Ke6) 41. f5 $1 $18 {[%emt 0:31:38]} gxf5 {[%emt 0:06:08]} 42. exf5 {[%emt 0:00:00]} ({But not} 42. gxh5 fxe4+ 43. Kxe4 Ke6 $11) ({Better is} 42. Nxf5 Ke8 43. gxh5) 42... hxg4+ $16 {[%emt 0:04:43]} 43. Nxg4 {[%emt 0:00:00]} Ke7 {[%emt 0:00:08]} 44. Ke4 {[%emt 0:00:00]} Be1 {[%emt 0:14:52]} 45. h5 {[%emt 0:00:00][%cal Bh4h5,Bh5h6,Bh6h7][%mdl 32]} a5 {[%emt 0:00:25]} 46. Kd5 {[%emt 0:00:00]} c4 $2 {[%emt 0:02:22][%mdl 8192]} (46... a4 $16) 47. bxc4 {[%emt 0:00:00]} (47. h6 $142 Kf7 48. bxc4 bxc4 49. Kxc4) 47... b4 {[%emt 0:00:02]} 48. h6 {[%emt 0:00:00] White mates.} Kf7 {[%emt 0:00:13]} 49. c5 {[%emt 0:00:00][%cal Bc4c5,Bc5c6][%mdl 32]} a4 {[%emt 0:00:53]} 50. Kc4 {[%emt 0:00:00]} b3 {[%emt 0:01:08]} 51. c6 {[%emt 0:00:00]} Ba5 {[%emt 0:00:17]} 52. h7 {[%emt 0:00:00]} Kg7 {[%emt 0:00:03] [#]} 53. Nxf6 $1 {[%emt 0:00:00][%mdl 512]} Kh8 {[%emt 0:01:11]} 54. Nd5 {[%emt 0:00:00]} a3 {[%emt 0:02:41]} 55. Kxb3 {[%emt 0:00:00]} ({Stronger than} 55. c7 Bxc7 56. bxa3 (56. Nxc7 axb2 57. f6 b1=Q 58. Nd5 Qc2+ 59. Nc3 b2 60. Kd4 Qf2+ 61. Kd3 Qxf6 62. Kd2 Kxh7 63. Kd3 Qxc3+ 64. Kxc3 b1=Q 65. Kd4 Qc2 66. Kd5 Qa4 67. Ke5 Kg6 68. Kd5 Kf6 69. Kc5 Ke6 70. Kb6 Kd6 71. Kb7 Qb5+ 72. Ka7 Kc7 73. Ka8 Qb8#) 56... b2 $11) 55... axb2 {[%emt 0:00:08]} 56. Kxb2 {[%emt 0:00:00]} Kxh7 {[%emt 0:00:14]} 57. c7 {[%emt 0:00:00]} Bxc7 {[%emt 0:00:10]} 58. Nxc7 {[%emt 0:00:00] Weighted Error Value: White=0.14 (very precise) /Black=0.26 (precise)} 1-0

[Event "24th Hoogeschool Zeeland 2022"]
[Site "Vlissingen"]
[Date "2022.08.12"]
[Round "8.18"]
[White "Laux, Dominik"]
[Black "Manshanden, Nick"]
[Result "1-0"]
[ECO "C54"]
[WhiteElo "2320"]
[BlackElo "2065"]
[Annotator "TA"]
[PlyCount "67"]
[EventDate "2022.08.05"]
[EventType "swiss"]
[EventCountry "NED"]
[SourceTitle "playchess.com"]
[Source "ChessBase"]
[SourceQuality "1"]
[TimeControl "40/5400+30:1800+30"]

{[%evp 15,67,30,38,27,27,17,64,56,54,59,36,50,62,52,61,64,55,58,87,94,305,328,750,579,548,533,518,335,374,337,363,364,321,325,363,250,29984,29985,29985,122,29986,29987,29987,29988,29995,1524,1114,1185,782,533,4710,4702,29992,29993]} 1. e4 {[%emt 0:03:07]} e5 {[%emt 0:00:10]} 2. Nf3 {[%emt 0:00:12]} Nc6 {[%emt 0:00:07]} 3. Bc4 {[%emt 0:00:31]} Bc5 {[%emt 0:00:25]} 4. c3 {[%emt 0:00:36]} Nf6 {[%emt 0:00:23]} 5. d3 {[%emt 0:00:27]} O-O {[%emt 0:00:55]} 6. O-O {[%emt 0:00:22]} d5 {[%emt 0:00:18]} 7. exd5 {[%emt 0:00:21]} Nxd5 {[%emt 0:00:05]} 8. Re1 {[%emt 0:01:13]} Bg4 {[%emt 0:01:31]} 9. h3 {[%emt 0:01:21] 9.Nbd2 is more advanced technology. C54: Giuoco Piano: 4 c3 Nf6, main lines with 5 d4 and 5 d3.} Bh5 {[%emt 0:00:23]} 10. b4 {[%emt 0:01:13]} Ndxb4 {[%emt 0:25:12]} 11. g4 $1 $14 {[%emt 0:06:45] White is slightly better.} (11. cxb4 Bxf3 12. Qxf3 Bd4 $17) 11... e4 $1 {[%emt 0:03:53]} 12. cxb4 {[%emt 0:23:49]} (12. gxh5 exf3 13. Na3 (13. cxb4 $2 Bd4 $19) 13... Qf6 14. cxb4 Bxb4 $19) 12... Bxf2+ {[%emt 0:08:45]} 13. Kxf2 {[%emt 0:04:38]} exf3 {[%emt 0:00:38]} 14. Qxf3 {[%emt 0:52:55]} ({But not} 14. gxh5 Qh4+ 15. Kxf3 Qxh3+ 16. Kf2 Qh2+ 17. Kf1 Qh1+ 18. Kf2 Qh2+ 19. Kf1 Qh1+ 20. Kf2 Qh2+ $11) 14... Qd4+ {[%emt 0:04:07]} 15. Be3 {[%emt 0:00:00]} Qxa1 {[%emt 0:00:39]} 16. Nd2 $36 {[%emt 0:00:00][%cal Bb1d2,Bd2e4,Be4f6][%mdl 2080] [#] White is more active.} Qc3 $146 {[%emt 0:04:03] aiming for ...Bg6. Black is now going downhill.} ({Predecessor:} 16... Qb2 17. gxh5 Ne5 18. Qxb7 Rad8 19. Qe4 Nxc4 20. Qxc4 Rfe8 21. Re2 Qe5 22. Nf3 Qxh5 23. Bxa7 Rxe2+ 24. Kxe2 Qxh3 {1-0 (55) Dai,C (2351)-Peng,X (2189) Harbin 2016}) 17. Ne4 {[%emt 0:00:00]} Qa3 {[%emt 0:09:20]} 18. gxh5 $18 {[%emt 0:00:00] Black must now prevent Re2.} Ne5 $2 {[%emt 0:02:03]} (18... Qb2+ 19. Re2 Qe5) 19. Nf6+ {[%emt 0:00:00]} Kh8 {[%emt 0:07:15]} 20. Qf5 {[%emt 0:00:00][%csl Gf6][%cal Rf5h7] Active counter play!} Qb2+ {[%emt 0:00:29]} 21. Re2 {[%emt 0:00:00][%csl Gf6][%cal Rf5h7]} Nxd3+ {[%emt 0:00:14]} 22. Bxd3 {[%emt 0:00:00][%csl Gd3,Gf6][%cal Rf5h7] Dancing on a razor blade.} ({And not} 22. Qxd3 Qxf6+ 23. Kg3 Rad8 $11) 22... Qxf6 {[%emt 0:00:07]} 23. Qxf6 {[%emt 0:00:00]} gxf6 {[%emt 0:00:05]} 24. Bd4 {[%emt 0:00:00]} Kg7 {[%emt 0:01:07]} 25. Kf3 {[%emt 0:00:00] Intending Rg2+ and mate.} Rad8 $2 {[%emt 0:00:23]} (25... Rg8 $18 26. Rg2+ Kh6) 26. Rg2+ {[%emt 0:00:00]} Kh6 {[%emt 0:00:43]} 27. Be3+ {[%emt 0:00:00] A strong pair of Bishops.} Kxh5 {[%emt 0:00:06]} 28. Be2 {[%emt 0:00:00]} Rg8 {[%emt 0:02:50] [#]} 29. Kf4+ $1 {[%emt 0:00:00]} Kh4 {[%emt 0:00:22]} 30. Bg4 {[%emt 0:00:00]} (30. Rg4+ $142 Kh5 31. Rxg8+ Kh4 {[#]} 32. Bg4 $1 Rd4+ 33. Bxd4 h6 34. Bxf6#) 30... Rxg4+ {[%emt 0:00:37]} 31. hxg4 {[%emt 0:00:00][%cal Rg2h2,Bh3g4,Bg4g5][%mdl 32]} Kh3 {[%emt 0:00:29] Inhibits Rh2+.} 32. Rd2 {[%emt 0:00:00]} Rg8 {[%emt 0:01:19]} 33. Kf3 {[%emt 0:00:00] White threatens Bf4 and mate.} f5 {[%emt 0:03:56]} 34. g5 {[%emt 0:00:00] Weighted Error Value: White=0.37/Black=0.80} 1-0